Cogmind - Beta 13 @@@ ROGUE MODE // 2024.04.04 @ 22:35:01 Player: darki Result: Destroyed by as-67664 with Assembled Rifle Performance ------------- Evolutions (0) 0 Regions Visited (2) 400 Robots Destroyed (15) 75 Value Destroyed (279) 279 Prototype IDs (0) 0 Alien Tech Used (0) 0 Bonus (-139) -139 TOTAL SCORE: 615 Bonus ------- Friendly Fire -139 Cogmind --------- Core Integrity 0/250 Matter 211/300 Energy 250/250 System Corruption 0% Temperature Cool (0) Movement Treading (320) Ox2 Location -10/Mines Parts ------- > --- POWER (1) -------- Ion Engine > --- PROPULSION (2) --- Light Treads > --- UTILITY (2) ------ Heat Sink High-capacity Storage Unit > --- WEAPON (2) ------- Light Assault Rifle Light Assault Rifle > --- INVENTORY (20) --- Ion Engine Light Ion Engine Aluminum Leg Aluminum Leg Wheel Wheel Small Storage Unit High-capacity Matter Pod (187) High-capacity Matter Pod (0) Sensor Array Signal Interpreter Terrain Scanner Core Shielding Light Armor Plating Light Armor Plating Medium Laser Assault Rifle Light Assault Rifle Grenade Launcher Mining Laser Peak State ------------ > --- POWER ------------ Ion Engine > --- PROPULSION ------- Light Treads Light Treads > --- UTILITY ---------- Heat Sink High-capacity Storage Unit > --- WEAPON ----------- Light Assault Rifle Grenade Launcher > --- INVENTORY -------- Light Ion Engine Light Ion Engine Aluminum Leg Aluminum Leg Aluminum Leg Wheel Wheel Small Storage Unit High-capacity Matter Pod High-capacity Matter Pod Sensor Array Signal Interpreter Terrain Scanner Core Shielding Light Armor Plating Light Armor Plating Medium Laser Assault Rifle Light Assault Rifle Light Assault Rifle [Rating: 9] Favorites ----------- Power Ion Engine Engine Ion Engine Propulsion Light Treads Treads Light Treads Leg Aluminum Leg Utility Heat Sink Device Heat Sink Storage High-capacity Storage Unit Weapon Light Assault Rifle Energy Gun Medium Laser Ballistic Gun Light Assault Rifle Launcher Grenade Launcher Build | -11 -10 -10 ------- Run | Yrd Mat Min Slots Evolved . | . . . Power . | . . . Propulsion . | . . . Utility . | . . . Weapon . | . . . Parts Attached 12 | . 11 1 Power 3 | . 3 . Engine 3 | . 3 . Core . | . . . Reactor . | . . . Propulsion 2 | . 2 . Treads 2 | . 2 . Leg . | . . . Wheel . | . . . Hover . | . . . Flight . | . . . Utility 3 | . 3 . Device 2 | . 2 . Storage 1 | . 1 . Processor . | . . . Hackware . | . . . Protection . | . . . Artifact . | . . . Weapon 4 | . 3 1 Energy Gun 1 | . 1 . Energy Cannon . | . . . Ballistic Gun 2 | . 1 1 Ballistic Cannon . | . . . Launcher 1 | . 1 . Special Weapon . | . . . Impact Weapon . | . . . Slashing Weapon . | . . . Piercing Weapon . | . . . Special Melee Weapon . | . . . Unidentified Prototypes . | . . . Parts Lost 6 | . 5 1 Power 1 | . 1 . Propulsion 2 | . 1 1 Utility 1 | . 1 . Weapon 2 | . 2 . Highest Loss Streak 4 | . 4 1 To Critical Strikes . | . . . Average Slot Usage (%) 97 | . 97 98 Engine 13 | . 13 14 Treads 26 | . 26 26 Leg 1 | . 1 . Device 12 | . 12 14 Storage 14 | . 14 14 Energy Gun 4 | . 4 . Ballistic Gun 14 | . 14 15 Launcher 9 | . 8 12 Naked Turns . | . . . Heaviest Build 50 | 11 50 50 Greatest Support 40 | 20 40 40 Greatest Overweight (x) 1 | . 1 1 Average Overweight (x) . | . . 1 Largest Inventory Capacity 20 | . 20 20 Average Capacity 17 | . 17 20 Most Carried 20 | . 20 20 Average Carried 14 | . 14 20 Final Capacity 20 | 8 20 20 Final Carried 20 | 6 20 20 Class Distribution -------------------- 100% | Mutant Dominant Class ---------------- Mutant | -10/Materials Mutant | -10/Mines Resources | -11 -10 -10 ----------- Run | Yrd Mat Min Matter Collected 554 | 200 354 . Remotely . | . . . Salvage Created 504 | . 427 77 Parts 35 | . 29 6 Haulers Intercepted 2 | . 2 . Recyclers Shooed . | . . . Parts Field Recycled . | . . . Retrieved Matter . | . . . Parts Self-Destructed . | . . . Prevented . | . . . Kills | -11 -10 -10 ------- Run | Yrd Mat Min Combat Hostiles Destroyed 19 | . 8 11 Guns 7 | . 7 . AOE 12 | . 1 11 Classes Destroyed 7 | . 4 3 Worker 1 | . . 1 Hauler 2 | . 2 . Watcher 3 | . 3 . Swarmer 3 | . 3 . Grunt 5 | . 5 . Assembled 11 | . . 11 Guerrilla 1 | . . 1 Best Kill Streak 12 | . 5 12 Combat Bots Only 11 | . 5 11 Max Kills in Single Turn 6 | . 1 6 Gunslinging . | . . . Exploded 6 | . 1 6 Melee . | . . . Uniques/NPCs Destroyed . | . . . Combat | -11 -10 -10 -------- Run | Yrd Mat Min Hostile Shots Fired 107 | . 88 19 Missed 20 | . 14 6 Damage Taken 1084 | . 825 259 Core 252 | . 196 56 Absorbed by Shields . | . . . Core Remaining (%) 100 | 100 . . Volleys Fired 55 | . 44 11 Largest 2 | . 2 1 Hottest 70 | . 70 30 Shots Fired 81 | . 70 11 Gun 71 | . 67 4 Cannon . | . . . Launcher 10 | . 3 7 Special . | . . . Kinetic 42 | . 38 4 Thermal 29 | . 29 . Explosive 10 | . 3 7 Electromagnetic . | . . . Robot Hit Streak 15 | . 15 3 Robot Miss Streak 3 | . 3 1 Penetration Max . | . . . Secondary Targets 2 | . 2 . Max Gunslinging Chain 1 | . 1 . Shots Hit Robots 51 | . 46 5 Core Hits 51 | . 22 29 Critical Kills . | . . . Critical Parts Destroyed . | . . . Critical Strikes . | . . . Melee Attacks . | . . . Impact . | . . . Slashing . | . . . Piercing . | . . . Sneak Attacks . | . . . Combat Hostiles . | . . . Follow-up Attacks . | . . . Damage Inflicted 1243 | . 580 663 Guns 483 | . 466 17 Cannons . | . . . Explosions 760 | . 114 646 Melee . | . . . Ramming . | . . . Kinetic 221 | . 204 17 Thermal 262 | . 262 . Explosive 760 | . 114 646 Electromagnetic . | . . . Impact . | . . . Slashing . | . . . Piercing . | . . . Highest Corruption . | . . . Average Corruption . | . . . Corruption Purged . | . . . Corruption Blocked . | . . . Overload Shots . | . . . Overflow Damage 6 | . . 6 Projectiles . | . . . Explosions 6 | . . 6 Melee . | . . . Knockbacks . | . . . Impact . | . . . Kinetic . | . . . Secondary . | . . . Self-Inflicted Damage 89 | . 39 50 Shots 4 | . 1 3 Rammed . | . . . Targets Rammed . | . . . Kicked . | . . . Crushed . | . . . Highest Temperature 152 | . 152 10 Average Temperature 42 | . 43 7 Received Heat Transfer 380 | . 300 80 Siege Activations . | . . . Robots Corrupted . | . . . Combat Hostiles . | . . . Parts Fried . | . . . Impact Corruptions . | . . . Robots Melted . | . . . Combat Hostiles . | . . . Parts Melted 3 | . 2 1 Heat Transferred 777 | . 777 . Parts Sabotaged . | . . . Parts Stolen . | . . . Parts Stripped . | . . . Power Chain Reactions . | . . . Alert | -11 -10 -10 ------- Run | Yrd Mat Min Peak Influence 157 | . 157 36 Initial . | . . . Average 43 | . 45 7 Maximum Alert Level . | . . . Low Security (%) 100 | . 100 100 Level 1 . | . . . Level 2 . | . . . Level 3 . | . . . Level 4 . | . . . Level 5 . | . . . High Security . | . . . Max Security . | . . . Squads Dispatched 1 | . 1 . Investigation 1 | . 1 . Extermination . | . . . Reinforcement . | . . . Assault . | . . . Garrison . | . . . Intercept . | . . . Searches Triggered . | . . . Construction Impeded . | . . . Haulers Reinforced . | . . . Active Scanning Responses . | . . . Cargo Convoy Interrupts . | . . . Stealth | -11 -10 -10 --------- Run | Yrd Mat Min Distress Signals 1 | . . 1 Communications Jammed . | . . . Distress Signals . | . . . Times Spotted 30 | . 14 16 Peak Tracking Total 19 | . 5 19 Tactical Retreats 2 | . 1 1 Traps | -11 -10 -10 ------- Run | Yrd Mat Min Traps Triggered 1 | . 1 . Indirectly . | . . . Trap Hack Attempts . | . . . Triggered . | . . . Disarmed . | . . . Reprogrammed . | . . . Reused . | . . . Traps Extracted . | . . . Installed . | . . . Triggered . | . . . Machines | -11 -10 -10 ---------- Run | Yrd Mat Min Machines Disabled . | . . . Max in Single Turn . | . . . Machines Repaired . | . . . Machines Dismantled . | . . . Machines Sabotaged . | . . . Overloaded Fab Kills . | . . . Hacking | -11 -10 -10 --------- Run | Yrd Mat Min Machines Accessed 4 | . 4 . Terminals 4 | . 4 . Fabricators . | . . . Repair Stations . | . . . Recycling Units . | . . . Scanalyzers . | . . . Garrison Access . | . . . Total Hacks 9 | . 9 . Successful 5 | . 5 . Failed 4 | . 4 . Catastrophic . | . . . Database Lockouts . | . . . Manual 9 | . 9 . Terminals 9 | . 9 . Fabricators . | . . . Repair Stations . | . . . Recycling Units . | . . . Scanalyzers . | . . . Garrison Access . | . . . Terminal Hacks 3 | . 3 . Branch Access Points 1 | . 1 . Registered Components 1 | . 1 . Zone Layout 1 | . 1 . Fabricator Hacks . | . . . Repair Station Hacks . | . . . Recycling Unit Hacks . | . . . Scanalyzer . | . . . Garrison Access Hacks . | . . . Unauthorized Hacks 2 | . 2 . Terminals 2 | . 2 . Botnet 2 | . 2 . Fabricators . | . . . Repair Stations . | . . . Recycling Units . | . . . Scanalyzers . | . . . Garrison Access . | . . . Data Cores Recovered . | . . . Used . | . . . Hacking Detections 2 | . 2 . Full Trace Events . | . . . Feedback Events . | . . . Feedback Blocked . | . . . Robot Schematics Acquired . | . . . Robots Built . | . . . Authchips . | . . . Time . | . . . Total Robot Build Rating . | . . . Part Schematics Acquired . | . . . Parts Built . | . . . Authchips . | . . . Time . | . . . Total Part Build Rating . | . . . Parts Repaired . | . . . Time . | . . . Parts Recycled . | . . . Recycled Matter . | . . . Retrieved Matter . | . . . Retrieved Components . | . . . Parts Scanalyzed . | . . . Part Schematics Acquired . | . . . Parts Damaged . | . . . Bothacking | -11 -10 -10 ------------ Run | Yrd Mat Min Used RIF Installer . | . . . Robots Hacked . | . . . Non-combat . | . . . Combat . | . . . Robot Hacks Applied . | . . . Relay Couplers Released . | . . . Fabnet Peak Effective % . | . . . Robots Rewired . | . . . Allies Hacked . | . . . Hacks Repelled . | . . . Allies | -11 -10 -10 -------- Run | Yrd Mat Min Total Allies . | . . . Largest Group . | . . . Highest-Rated Group . | . . . Highest-Rated Ally . | . . . Total Orders . | . . . Ally Attacks . | . . . Total Damage . | . . . Kills . | . . . Allies Corrupted . | . . . Allies Melted . | . . . Intel | -11 -10 -10 ------- Run | Yrd Mat Min Robot Analysis Total . | . . . Derelict Logs Recovered . | . . . Drone Launches . | . . . Drone Recoveries . | . . . Exploration | -11 -10 -10 ------------- Run | Yrd Mat Min Turns Passed 1710 | . 1626 84 Spaces Moved 639 | 1 613 25 Core . | . . . Treads 591 | . 566 25 Legs 48 | 1 47 . Wheels . | . . . Hover . | . . . Flight . | . . . Fastest Speed 120 | 120 120 240 Average Speed 218 | 120 218 240 Slowest Speed 240 | 120 240 240 Overloaded Moves . | . . . Propulsion Burnouts . | . . . Robots Hopped . | . . . Cave-ins Triggered . | . . . Exploration Rate (%) 36 | 2 95 11 Regions Visited 2 Branch Regions 1 Pre-discovered Areas . | . . . Known Exits Taken 1 | . 1 . Unknown Exits Taken 1 | 1 . . Scrap Searched . | . . . Spaces Dug 7 | . 7 . Terrain Destroyed 67 | . 23 44 Melee . | . . . Projectile . | . . . AOE 67 | . 23 44 Terrain Rammed . | . . . Walls Destroyed . | . . . Machines Disabled . | . . . Actions | -11 -10 -10 --------- Run | Yrd Mat Min Total 876 | . 837 39 Wait 154 | . 152 2 Move 637 | . 612 25 Hop . | . . . Pick Up 16 | . 16 . Fast Attach 3 | . 3 . Attach 3 | . 3 . Detach . | . . . Swap 6 | . 5 1 Drop 2 | . 2 . Fire 55 | . 44 11 Melee . | . . . Ram . | . . . Kick . | . . . Crush . | . . . Escape Stasis . | . . . Rewire . | . . . Trap . | . . . Miscellaneous . | . . . Route ------- -11/Scrapyard -10/Materials (discovered 5 exits: [*Mat x3] / *Min x2) -10/Mines History --------- Turn | Location | Event 1 | -11/Scrapyard | Discovered new exit (range 0) 1 | -11/Scrapyard | Entered Materials 13 | -10/Materials | Identified exit to Mines 109 | -10/Materials | Core integrity fell below 50% 136 | -10/Materials | Lost 4 parts (1p1n2w) 321 | -10/Materials | Build established: Mutant 345 | -10/Materials | Discovered new exit (range 13) 804 | -10/Materials | Discovered new exit (range 14) 1345 | -10/Materials | Discovered new exit (range 13) 1627 | -10/Materials | Entered Mines 1674 | -10/Mines | Assembled infested the area 1679 | -10/Mines | Assisted by a Guerilla fighting off Assembled 1688 | -10/Mines | Core integrity fell below 20% 1711 | -10/Mines | Destroyed by as-67664 with Assembled Rifle Last Messages --------------- 01685_ Destroyed Asb. F-torch. 01686_ K-01 Serf collects debris. 01687_ as-09672 destroyed. 01687_ as-61041 destroyed. 01687_ as-38254 destroyed. 01687_ as-93667 destroyed. 01687_ as-81462 destroyed. 01687_ as-52070 destroyed. 01689_ K-01 Serf collects debris. 01691_ as-16789 destroyed. 01691_ as-82641 destroyed. 01693_ K-01 Serf collects debris. 01693_ as-27656 destroyed. 01697_ K-01 Serf collects debris. 01699_ K-01 Serf destroyed. 01701_ as-65973 destroyed. 01701_ K-01 Serf destroyed. 01702_ The unstable cave ceiling collapses. 01709_ Lgt. Treads destroyed. 01710_ The unstable cave ceiling collapses. Map ----- +----------------------------------------------------+ | ????????????????????????????????????? | | ????????????????????????????????????? | | ????????????????????????????????????? | | ????????????????????????????????????? | | ????????????????????????????????????? | | ????????????????????????????????????? | | ????????????????????????????????????? | | ???????????#????????????????????????? | | ??????????# ???????????????????????? | | ?????????? ????? ???????????????? | | ?????????# ???? ??????????????? | | ????????? ??#? ??????????????? | | ????????? ? ## ??????????????? | | ????????? ? #??????????????? | | ?????????? ? ##?????????????? | | ?????????? # #?????????????? | | ?????????? ! # #?????????????? | | ?????????? =%* ??????????????? | | ?????????## = ???????????????? | | ?????????# ????????????????? | | ?????????# #?????????????????? | | ?????????# # %a #??????????????????? | | ?????????# #??????????????????? | | ?????????# % #######????????????? | | ???###???# a # #????????????? | | ??## #??## @ #????????????? | | ??# ### #????????????? | | ??# ### #????????????? | | ??# ##?# #????????????? | | ??## ##??# #????????????? | | ???## ##???#######????????????? | | ????## ###???????????????????????? | | ?????## ##?????????????????????????? | | ??????####??????????????????????????? | | ????????????????????????????????????? | | ????????????????????????????????????? | | ????????????????????????????????????? | | ????????????????????????????????????? | | ????????????????????????????????????? | | | | | | | | | | | | | | | | | | | | | | | +----------------------------------------------------+ Best States ------------- Heat Dissipation 35 Energy Generation 10 Energy Capacity 250 Matter Stores 300 Matter Capacity 300 Sight Range 16 Terrain Scan Density 10 Evasion (%) 55 Recoil Reduction 2 Item Schematics ----------------- None Robot Schematics ------------------ None Fabricated ------------ Nothing Alien Tech Used ----------------- None Achievements -------------- None Challenges ------------ None Game ------ Seed MicroCooledMultirail Manual? 0 Play Time 00:07:21 Cumulative 200.3 hours Start 2024.04.04 @ 21:15:52 End 2024.04.04 @ 22:35:01 Sessions 1 Manual Loads 0 Difficulty Rogue Special Mode None Game No. 202 Rogue 202 Adventurer 0 Explorer 0 Win Type - Total 3 Types 3/0/0/0/0/0/0/0/0 Lore% 65 Gallery% 76 Achievement% 60 Wizard Run 0 Options --------- Layout 1 ASCII 0 Keyboard 0 Movement Numpad Keybinds 0 Fullscreen 2 Font 24/Smallcaps Map View 50x35 Zoom Use 0% Tactical HUD 1 Map Filters NONE Filters NONE Steam 1 RUN: 231828fe-a9ed-4289-8da2-b7fe74cb9011